bitfinex/quotes_BTCUSD_20251104
["timestamp","ask_amount","ask_price","bid_price","bid_amount"]
[1762298819710,0.05349,101200.0,101190.0,0.19779263]
[1762298820525,0.003,101200.0,101190.0,1.35892877]
[1762298820652,0.003,101200.0,101190.0,1.74292877]
[1762298820858,0.003,101200.0,101190.0,1.81070988]
[1762298821896,0.0004,101210.0,101200.0,0.19762845]
[1762298822098,0.0004,101210.0,101200.0,0.76206325]
[1762298822643,0.23703893,101210.0,101200.0,0.19762845]
[1762298822863,0.21306893,101210.0,101200.0,0.70884325]
[1762298822992,0.01546,101210.0,101200.0,0.70884325]
[1762298823550,0.01546,101210.0,101200.0,0.19762845]
[1762298823813,0.0004,101210.0,101200.0,0.70884325]
[1762298824485,0.19800893,101210.0,101200.0,0.70884325]
[1762298824633,0.0004,101210.0,101200.0,0.70884325]
[1762298825642,0.19800893,101210.0,101200.0,0.70884325]
[1762298825845,0.19800893,101210.0,101200.0,0.5112148]
[1762298826045,0.19800893,101210.0,101200.0,0.70884325]
[1762298826425,0.19800893,101210.0,101200.0,0.19762845]
[1762298826965,0.19762845,101200.0,101190.0,0.04414465]
[1762298827161,0.03903,101200.0,101190.0,0.24179263]
[1762298827636,0.23665845,101200.0,101190.0,0.24179263]
[1762298828075,0.03903,101200.0,101190.0,0.24179263]
[1762298828276,0.01506,101200.0,101190.0,0.75254474]
[1762298828548,0.01506,101200.0,101190.0,0.75354474]
[1762298828751,0.01506,101200.0,101190.0,0.75254474]
[1762298829152,0.001,101200.0,101190.0,0.75254474]
[1762298831361,0.22172916,101210.0,101200.0,0.19762845]
[1762298831560,0.22172916,101210.0,101200.0,0.28299167]
[1762298831769,0.23745916,101210.0,101200.0,0.28299167]
[1762298831970,0.23745916,101210.0,101200.0,0.08536322]
[1762298832170,0.23745916,101210.0,101200.0,0.28299167]
[1762298832421,0.23745916,101210.0,101200.0,0.08536322]
[1762298832821,0.23845916,101210.0,101200.0,0.08536322]
[1762298833028,0.23845916,101210.0,101200.0,0.28299167]
[1762298833348,0.23845916,101210.0,101200.0,0.08536322]
[1762298834015,0.23845916,101210.0,101200.0,0.28299167]
[1762298834231,0.04085,101210.0,101200.0,0.28299167]
[1762298834969,0.01713,101210.0,101200.0,0.28299167]
[1762298835294,0.0014,101210.0,101200.0,0.79374378]
[1762298835491,0.23845893,101210.0,101200.0,0.28299167]
[1762298835999,0.23845893,101210.0,101200.0,0.08536322]
[1762298836224,0.23845893,101210.0,101200.0,0.28299167]
[1762298837867,0.01713,101210.0,101200.0,0.28299167]
[1762298838732,0.01713,101210.0,101200.0,0.79374378]
[1762298838733,0.0014,101210.0,101200.0,0.79374378]
[1762298839407,0.0014,101210.0,101200.0,0.28299167]
[1762298839604,0.0014,101210.0,101200.0,0.19762845]
[1762298839828,0.0014,101210.0,101200.0,0.28299167]
[1762298840082,0.21473893,101210.0,101200.0,0.28299167]
[1762298840306,0.23845893,101210.0,101200.0,0.28299167]
[1762298840527,0.04085,101210.0,101200.0,0.28299167]
[1762298840952,0.03985,101210.0,101200.0,0.28299167]
[1762298841150,0.01613,101210.0,101200.0,0.28299167]
[1762298841995,0.23745893,101210.0,101200.0,0.28299167]
[1762298842132,0.03985,101210.0,101200.0,0.28299167]
[1762298843295,0.19762845,101200.0,101190.0,0.00014465]
[1762298843501,0.23707845,101200.0,101190.0,0.00014465]
[1762298843674,0.27047623,101200.0,101190.0,0.00014465]
[1762298843877,0.23707845,101200.0,101190.0,0.00014465]
[1762298844679,1.05021399,101200.0,101190.0,0.00014465]
[1762298844881,1.08739627,101200.0,101190.0,0.00014465]
[1762298845316,1.47135627,101200.0,101190.0,0.00014465]
[1762298847073,1.47035627,101200.0,101190.0,0.00014465]
[1762298847211,1.47535627,101200.0,101190.0,0.00014465]
[1762298848479,0.66222073,101200.0,101190.0,0.00014465]
[1762298849119,0.62603845,101200.0,101190.0,0.00014465]
[1762298849707,1.4426414,101200.0,101190.0,0.00014465]
[1762298850031,0.19768706,101170.0,101160.0,0.28306982]
[1762298850179,0.02768472,101170.0,101160.0,0.28306982]
[1762298850360,0.01195472,101170.0,101160.0,0.28306982]
[1762298850753,0.00014472,101170.0,101160.0,1.06349049]
[1762298851531,0.23728178,101170.0,101160.0,0.28306982]
[1762298852008,0.23728178,101170.0,101160.0,0.08536322]
[1762298852206,0.03959472,101170.0,101160.0,0.28306982]
[1762298852410,0.23728178,101170.0,101160.0,0.28306982]
[1762298852632,0.03959472,101170.0,101160.0,0.28306982]
[1762298852777,0.00014472,101170.0,101160.0,0.28306982]
[1762298853110,0.00014472,101170.0,101160.0,1.06349049]
[1762298853538,0.00014472,101170.0,101160.0,1.40349049]
[1762298853745,0.00014472,101170.0,101160.0,1.45671049]
[1762298853867,0.00114472,101170.0,101160.0,0.67628982]
[1762298854428,0.00014472,101170.0,101160.0,0.67628982]
[1762298854644,0.00014472,101170.0,101160.0,0.82578982]
[1762298855972,0.00014472,101170.0,101160.0,0.43256982]
[1762298857070,0.00014472,101170.0,101160.0,1.25695049]
[1762298857269,0.00014472,101170.0,101160.0,1.31017049]
[1762298857436,0.00014472,101170.0,101160.0,1.36017049]
[1762298857867,0.00014472,101170.0,101160.0,1.72985028]
[1762298858075,0.00014472,101170.0,101160.0,1.67763028]
[1762298859020,0.23222961,101210.0,101190.0,0.19764798]
[1762298859155,0.03892,101200.0,101190.0,0.19764798]
[1762298860139,0.01637,101200.0,101190.0,0.19764798]
[1762298860351,0.03476296,101210.0,101200.0,0.19762845]
[1762298860567,0.01221296,101210.0,101200.0,0.28299167]
[1762298861198,0.05179296,101210.0,101200.0,0.28299167]
[1762298861632,0.05279296,101210.0,101200.0,0.28299167]
[1762298863303,0.25040189,101210.0,101200.0,0.28299167]
[1762298863504,0.05279296,101210.0,101200.0,0.28299167]
[1762298864043,0.02881296,101210.0,101200.0,0.28299167]
[1762298864800,0.25040189,101210.0,101200.0,0.28299167]
[1762298866065,0.05279296,101210.0,101200.0,0.28299167]
[1762298867082,0.25040189,101210.0,101200.0,0.28299167]
[1762298867552,0.05279296,101210.0,101200.0,0.28299167]
[1762298867898,0.02881296,101210.0,101200.0,0.28299167]
[1762298868619,0.00154296,101210.0,101200.0,1.06341234]
[1762298869451,0.00154296,101210.0,101200.0,1.11341234]
[1762298869602,0.00154296,101210.0,101200.0,1.06341234]
[1762298870044,0.00054296,101210.0,101200.0,0.28299167]
[1762298870268,0.00054296,101210.0,101200.0,0.28399167]
[1762298872447,0.01278296,101210.0,101200.0,0.28399167]
[1762298872644,0.00054296,101210.0,101200.0,0.32795167]
[1762298872847,0.00054296,101210.0,101200.0,1.25787234]
[1762298873090,0.00054296,101210.0,101200.0,1.70104738]
[1762298873234,0.00054296,101210.0,101200.0,1.64787234]
[1762298873440,0.00054296,101210.0,101200.0,1.71899677]
[1762298873638,0.00054296,101210.0,101200.0,0.9385761]
[1762298873819,0.00054296,101210.0,101200.0,1.71899677]
[1762298875520,0.00054296,101210.0,101200.0,1.70099632]
[1762298875725,0.00054296,101210.0,101200.0,1.7009966]
[1762298878840,0.00054296,101210.0,101200.0,0.92057593]
[1762298879062,0.00054296,101210.0,101200.0,1.7009966]
[1762298879386,0.00054296,101210.0,101200.0,1.71899677]
[1762298879829,0.00054296,101210.0,101200.0,1.64787234]
[1762298880154,0.00054296,101210.0,101200.0,1.69997657]
[1762298880571,0.00054296,101210.0,101200.0,1.70297657]
[1762298882137,0.00054296,101210.0,101200.0,1.64987234]
[1762298882342,0.00054296,101210.0,101200.0,1.38001929]
[1762298882543,0.00054296,101210.0,101200.0,0.86945167]
[1762298882808,0.00054296,101210.0,101200.0,1.33001929]
[1762298883391,0.00054296,101210.0,101200.0,1.38316792]
[1762298884882,0.00054296,101210.0,101200.0,1.33001929]
[1762298885589,0.00054296,101210.0,101200.0,1.40114372]
[1762298886421,0.00054296,101210.0,101200.0,2.42163951]
[1762298886638,0.01224,101240.0,101230.0,0.70792436]
[1762298886847,0.01272193,101240.0,101230.0,0.79328758]
[1762298887055,0.2498523,101240.0,101230.0,0.08536322]
[1762298887285,0.2498523,101240.0,101230.0,0.79328758]
[1762298887486,0.02832193,101240.0,101230.0,0.79328758]
[1762298887686,0.01272193,101240.0,101230.0,0.79328758]
[1762298887999,0.2258723,101240.0,101230.0,0.59571769]
[1762298888205,0.2498523,101240.0,101230.0,0.59571769]
[1762298888723,0.2498523,101240.0,101230.0,0.08536322]
[1762298888918,0.2498523,101240.0,101230.0,0.28293311]
[1762298889131,0.2498523,101240.0,101230.0,0.79328758]
[1762298889330,0.2508523,101240.0,101230.0,0.79328758]
[1762298890154,0.2508523,101240.0,101230.0,0.28293311]
[1762298891614,0.2508523,101240.0,101230.0,0.79328758]
[1762298891990,0.19756989,101230.0,101220.0,0.19342]
[1762298892195,0.76070436,101230.0,101220.0,0.1495]
[1762298892401,1.10070436,101230.0,101220.0,0.1495]
[1762298893133,0.19760572,101220.0,101210.0,0.19760893]
[1762298893280,0.22209572,101220.0,101210.0,0.19760893]
[1762298893480,0.19760893,101210.0,101200.0,0.90034151]
[1762298893728,0.23794893,101210.0,101200.0,0.90034151]
[1762298893879,0.23794893,101210.0,101200.0,0.84714756]
[1762298894080,0.04034,101210.0,101200.0,0.84714756]
[1762298894279,0.01585,101210.0,101200.0,0.90034151]
[1762298894937,0.55988838,101230.0,101210.0,0.19760893]
[1762298895141,0.2220794,101220.0,101210.0,0.19760893]
[1762298895340,0.2379294,101220.0,101210.0,0.19760893]
[1762298897153,0.2389294,101220.0,101210.0,0.19760893]
[1762298897354,0.2389294,101220.0,101200.0,0.90034151]
[1762298897531,0.2389294,101220.0,101210.0,0.19760893]
[1762298898114,0.04134,101220.0,101210.0,0.19760893]
[1762298898327,0.05378,101220.0,101210.0,0.19760893]
[1762298898661,0.02929,101220.0,101210.0,0.7079634]
[1762298898872,0.01344,101220.0,101210.0,0.7079634]
[1762298899075,0.001,101220.0,101210.0,0.7079634]
[1762298899276,0.02929,101220.0,101210.0,0.7079634]
[1762298900810,0.01344,101220.0,101210.0,0.7079634]
[1762298901025,0.001,101220.0,101210.0,0.76115735]
[1762298901155,0.03693,101230.0,101220.0,0.1975894]
[1762298901357,0.03693,101230.0,101220.0,0.79330709]
[1762298901561,0.05278,101230.0,101220.0,0.79330709]
[1762298901782,0.02829,101230.0,101220.0,0.79330709]
[1762298902002,0.05278,101230.0,101220.0,0.28295262]
[1762298902210,0.25034989,101230.0,101220.0,0.28295262]
[1762298902417,0.25034989,101230.0,101220.0,0.31847037]
[1762298903014,0.05278,101230.0,101220.0,0.31847037]
[1762298903410,0.05378,101230.0,101220.0,0.31847037]
[1762298904057,0.02929,101230.0,101220.0,0.31847037]
[1762298904231,0.001,101230.0,101220.0,0.82882484]
[1762298904431,0.01344,101230.0,101220.0,0.82882484]
[1762298904632,0.02929,101230.0,101220.0,0.82882484]
[1762298905341,0.05378,101230.0,101220.0,0.82882484]
[1762298907471,0.25134989,101230.0,101220.0,0.88201879]
[1762298907888,0.05378,101230.0,101220.0,0.37166432]
[1762298908085,0.05378,101230.0,101220.0,0.88201879]
[1762298909270,0.001,101230.0,101220.0,0.88201879]
[1762298909955,0.01344,101230.0,101220.0,0.88201879]
[1762298910163,0.02929,101230.0,101220.0,0.88201879]
[1762298910364,0.02829,101230.0,101220.0,0.88201879]
[1762298910581,0.01272193,101240.0,101230.0,0.19756989]
[1762298910723,0.03721193,101240.0,101230.0,0.70792436]
[1762298910934,0.05306193,101240.0,101230.0,0.70792436]
[1762298911147,0.00048193,101240.0,101230.0,0.74344211]
[1762298911524,0.00048193,101240.0,101230.0,0.79663606]
[1762298912387,0.00048193,101240.0,101230.0,0.76111831]
[1762298912735,0.05185193,101240.0,101230.0,0.25076384]
[1762298912949,0.05185193,101240.0,101230.0,0.28627672]
[1762298913406,0.2494023,101240.0,101230.0,0.08970683]
[1762298913603,0.2494023,101240.0,101230.0,0.28727672]
[1762298913805,0.2494023,101240.0,101230.0,0.03651288]
[1762298914693,0.2494023,101240.0,101230.0,0.001]
[1762298914900,0.2494023,101240.0,101230.0,0.19856989]
[1762298915345,0.05185193,101240.0,101230.0,0.70892436]
[1762298915496,0.00048193,101240.0,101230.0,0.76111831]
[1762298916329,0.2494023,101240.0,101230.0,0.25076384]
[1762298918047,0.2494023,101240.0,101230.0,0.19756989]
[1762298918777,0.05185193,101240.0,101230.0,0.19756989]
[1762298918954,0.2494023,101240.0,101230.0,0.19756989]
[1762298919135,0.05185193,101240.0,101230.0,0.19756989]
[1762298919335,0.2494023,101240.0,101230.0,0.19756989]
[1762298920187,0.05185193,101240.0,101230.0,0.19756989]
[1762298921060,0.2494023,101240.0,101230.0,0.19756989]
[1762298921468,0.01204193,101240.0,101230.0,0.70792436]
[1762298921650,0.05074193,101240.0,101230.0,0.70792436]
[1762298921851,0.2482923,101240.0,101230.0,0.19756989]
[1762298922104,0.05074193,101240.0,101230.0,0.25076384]
[1762298922262,0.05074193,101240.0,101230.0,0.19756989]
[1762298922652,0.2482923,101240.0,101230.0,0.19756989]
[1762298924103,0.05074193,101240.0,101230.0,0.19756989]
[1762298924453,0.02805193,101240.0,101230.0,0.76111831]
[1762298925437,0.01204193,101240.0,101230.0,0.76111831]
[1762298925939,0.02805193,101240.0,101230.0,0.76111831]
[1762298926747,0.05074193,101240.0,101230.0,0.76111831]
[1762298927144,0.02805193,101240.0,101230.0,0.76111831]
[1762298927347,0.02805193,101240.0,101230.0,0.25076384]
[1762298927516,0.02805193,101240.0,101230.0,0.76111831]
[1762298928110,0.00048193,101240.0,101230.0,0.76111831]
[1762298928953,0.02805193,101240.0,101230.0,0.76111831]
[1762298929186,0.05074193,101240.0,101230.0,0.76111831]
[1762298929340,0.02805193,101240.0,101230.0,0.76111831]
[1762298929983,0.02805193,101240.0,101230.0,0.25076384]
[1762298930327,0.75864677,101240.0,101230.0,0.05319395]
[1762298930465,0.75864677,101240.0,101230.0,0.19756989]
[1762298930999,0.2482923,101240.0,101230.0,0.19756989]
[1762298931204,0.2482923,101240.0,101230.0,0.25076384]
[1762298931760,0.2482923,101240.0,101230.0,0.19756989]
[1762298932177,0.2482923,101240.0,101230.0,0.25076384]
[1762298932449,0.2482923,101240.0,101230.0,0.19756989]
[1762298932776,0.02805193,101240.0,101230.0,0.25076384]
[1762298933189,0.05074193,101240.0,101230.0,0.25076384]
[1762298933384,0.2482923,101240.0,101230.0,0.25076384]
[1762298933619,0.05074193,101240.0,101230.0,0.25076384]
[1762298934027,0.02805193,101240.0,101230.0,0.25076384]
[1762298934276,0.00048193,101240.0,101230.0,0.76111831]
[1762298934985,0.05074193,101240.0,101230.0,0.76111831]
[1762298935301,0.2482923,101240.0,101230.0,0.76111831]
[1762298936142,0.05074193,101240.0,101230.0,0.76111831]
[1762298936770,0.00048193,101240.0,101230.0,1.27147278]
[1762298936952,0.00048193,101240.0,101230.0,0.70792436]
[1762298937148,0.00048193,101240.0,101230.0,0.77884962]
[1762298937553,0.00048193,101240.0,101230.0,0.82884962]
[1762298937758,0.00048193,101240.0,101230.0,1.33920409]
[1762298938471,0.00048193,101240.0,101230.0,1.34020409]
[1762298939588,0.00048193,101240.0,101230.0,1.48970409]
[1762298940553,0.00048193,101240.0,101230.0,0.97934962]
[1762298940991,0.00048193,101240.0,101230.0,1.48970409]
[1762298941166,0.00048193,101240.0,101230.0,0.97934962]
[1762298942499,0.00048193,101240.0,101230.0,0.92934962]
[1762298942711,0.00048193,101240.0,101230.0,0.85842436]
[1762298942917,0.01204193,101240.0,101230.0,0.85842436]
[1762298943527,0.02805193,101240.0,101230.0,0.34806989]
[1762298943732,0.02805193,101240.0,101230.0,0.85842436]
[1762298944109,0.02805193,101240.0,101230.0,0.70892436]
[1762298944628,0.01204193,101240.0,101230.0,0.70892436]
[1762298945236,0.00048193,101240.0,101230.0,0.70892436]
[1762298946372,0.00048193,101240.0,101230.0,0.70895107]
[1762298947664,0.00048193,101240.0,101230.0,0.75895107]
[1762298948025,0.00048193,101240.0,101230.0,0.70895107]
[1762298948226,0.2482923,101240.0,101230.0,0.19856989]
[1762298948465,0.2482923,101240.0,101230.0,0.25187788]
[1762298948644,0.2482923,101240.0,101230.0,0.05430799]
[1762298948858,0.75867348,101240.0,101230.0,0.001]
[1762298949057,0.88510363,101240.0,101230.0,0.001]
[1762298949259,0.1975894,101220.0,101200.0,0.33629922]
[1762298949462,0.21361893,101210.0,101200.0,0.33629922]
[1762298949689,0.23630893,101210.0,101200.0,0.13867121]
[1762298950313,0.19762845,101200.0,101190.0,0.09718799]
[1762298950503,0.23675845,101200.0,101190.0,0.09718799]
[1762298950846,0.19764798,101190.0,101180.0,0.64905239]
[1762298951063,0.19764798,101190.0,101180.0,0.08536322]
[1762298951064,0.24906798,101190.0,101180.0,0.08536322]
[1762298951275,0.25917288,101190.0,101180.0,0.08536322]
[1762298951499,0.25917288,101190.0,101180.0,0.00014296]
[1762298951667,0.76955406,101190.0,101180.0,0.00014296]
[1762298952079,1.10955406,101190.0,101180.0,0.00014296]
[1762298952279,0.1977066,101160.0,101150.0,0.04388]
[1762298952477,0.2252466,101160.0,101150.0,0.04402472]
[1762298952845,1.03037179,101160.0,101150.0,0.00014472]
[1762298952959,1.07266689,101160.0,101150.0,0.00014472]
[1762298953164,0.37969303,101190.0,101150.0,0.00014472]
[1762298953358,0.01229,101210.0,101180.0,0.97891271]
[1762298953678,0.20993721,101210.0,101180.0,1.08267608]
[1762298953905,0.20993721,101210.0,101200.0,0.08536322]
[1762298954280,0.22518721,101210.0,101200.0,0.08536322]
[1762298955108,0.22533174,101210.0,101200.0,0.08536322]
[1762298955490,0.00014453,101210.0,101200.0,1.06423686]
[1762298955923,0.19775346,101210.0,101200.0,0.91048841]
[1762298956286,0.20175346,101210.0,101200.0,1.10811686]
[1762298956403,0.19775346,101210.0,101200.0,1.10811686]
[1762298956805,0.20075346,101210.0,101200.0,1.10811686]
[1762298957053,0.00314453,101210.0,101200.0,1.10811686]
[1762298957251,0.00314453,101210.0,101200.0,1.49811686]
[1762298958357,0.00014453,101210.0,101200.0,1.49811686]
[1762298959292,0.00214453,101210.0,101200.0,1.49811686]
[1762298960812,0.00214453,101210.0,101200.0,1.53429914]
[1762298961102,0.19763348,101240.0,101220.0,0.24757041]
[1762298961226,0.1981154,101240.0,101230.0,0.87115189]
[1762298961427,0.1981154,101240.0,101230.0,0.08536322]
[1762298961647,0.00048192,101240.0,101230.0,0.28392095]
[1762298961850,0.19803229,101240.0,101230.0,0.08536322]
[1762298962482,0.20203229,101240.0,101230.0,0.08536322]
[1762298962890,0.19803229,101240.0,101230.0,0.08536322]
[1762298963094,0.20103229,101240.0,101230.0,0.08536322]
[1762298963857,0.25173175,101270.0,101230.0,0.08536322]
[1762298963858,0.0004,101280.0,101260.0,0.24751135]
[1762298964051,0.00044819,101280.0,101270.0,1.41261704]
[1762298964460,0.00044819,101280.0,101270.0,1.44879932]
[1762298964594,0.00044819,101280.0,101270.0,1.47844477]
[1762298965366,0.00044819,101280.0,101270.0,1.35238249]
[1762298965516,0.00044819,101280.0,101270.0,1.36677704]
[1762298966348,0.00044819,101280.0,101270.0,1.36277704]
[1762298968136,0.00044819,101280.0,101270.0,1.36577704]
[1762298968389,0.00044819,101280.0,101270.0,1.36277704]
[1762298968797,0.00044819,101280.0,101270.0,1.36477704]
[1762298969203,0.03957819,101280.0,101270.0,0.002]
[1762298969360,0.23705054,101280.0,101270.0,0.002]
[1762298969562,0.23705054,101280.0,101270.0,0.08736322]
[1762298971022,0.23705054,101280.0,101270.0,0.08536322]
[1762298971375,0.23705054,101280.0,101270.0,0.08636322]
[1762298972175,0.23705054,101280.0,101270.0,0.08536322]
[1762298972795,0.23805054,101280.0,101270.0,0.08536322]
[1762298973976,0.19749955,101270.0,101250.0,1.45801016]
[1762298974173,0.22540955,101270.0,101260.0,0.19751135]
[1762298975145,0.21015691,101280.0,101260.0,0.19751135]
[1762298975331,0.23379054,101280.0,101270.0,0.08536322]
[1762298975846,0.24999054,101280.0,101270.0,0.08536322]
[1762298976251,0.25051691,101280.0,101270.0,0.28285507]
[1762298976449,0.0004,101320.0,101290.0,3.06665]
[1762298976627,0.0002,101340.0,101330.0,0.19737491]
[1762298976899,0.0002,101340.0,101330.0,1.44904238]
[1762298976900,0.00024815,101340.0,101330.0,1.44904238]
[1762298977078,0.00024815,101340.0,101330.0,0.50671228]
[1762298977296,0.00024815,101340.0,101330.0,1.3991501]
[1762298977460,0.00024815,101340.0,101330.0,0.19737491]
[1762298978083,0.00024815,101340.0,101330.0,0.28873813]
[1762298978283,0.00024815,101340.0,101330.0,0.28273813]
[1762298978624,0.00024815,101340.0,101330.0,0.28673813]
[1762298979381,0.00024815,101340.0,101330.0,0.30338813]
[1762298980955,0.00024815,101340.0,101330.0,1.10427332]
[1762298981178,0.00024815,101340.0,101330.0,0.32302813]
[1762298981460,0.00024815,101340.0,101330.0,1.10427332]
[1762298982094,0.00175098,101340.0,101330.0,1.10427332]
[1762298983955,0.00175098,101340.0,101330.0,0.32302813]
[1762298984564,0.00175098,101340.0,101330.0,0.30338813]
[1762298984720,0.00175098,101340.0,101330.0,0.32302813]
[1762298985145,0.23664641,101340.0,101330.0,0.20137491]
[1762298985343,0.03929098,101340.0,101330.0,0.20137491]
[1762298985549,0.23664641,101340.0,101330.0,0.004]
[1762298986180,0.23664641,101340.0,101330.0,0.20137491]
[1762298986361,0.23664641,101340.0,101330.0,0.004]
[1762298986565,3.38893611,101340.0,101330.0,0.004]
[1762298986762,3.42511839,101340.0,101330.0,0.004]
[1762298987443,0.19742091,101320.0,101300.0,0.19743336]
[1762298987818,0.02789163,101310.0,101300.0,0.19743336]
[1762298987962,0.05040163,101310.0,101300.0,0.19743336]
[1762298988841,0.02789163,101310.0,101300.0,0.19743336]
[1762298989044,0.01286163,101310.0,101300.0,0.19743336]
[1762298989251,0.00075163,101310.0,101300.0,1.01453855]
[1762298989850,0.00075163,101310.0,101300.0,1.01853855]
[1762298989986,0.00075163,101310.0,101300.0,1.01453855]
[1762298990186,0.00075163,101310.0,101300.0,0.21365336]
[1762298990432,0.00075163,101310.0,101300.0,0.21865336]
[1762298991693,0.01578163,101310.0,101300.0,0.20243336]
[1762298991914,0.03829163,101310.0,101300.0,0.20243336]
[1762298992332,0.01578163,101310.0,101300.0,0.20243336]
[1762298992901,0.00075163,101310.0,101300.0,0.20243336]
[1762298994278,0.00075163,101310.0,101300.0,0.21865336]
[1762298994475,0.00075163,101310.0,101300.0,0.23829336]
[1762298995466,0.00075163,101310.0,101300.0,0.21865336]
[1762298995645,0.00075163,101310.0,101300.0,0.005]
[1762298995827,0.2357055,101310.0,101300.0,0.005]
[1762298996027,0.2357055,101310.0,101300.0,0.20243336]
[1762298996531,0.2357055,101310.0,101300.0,0.005]
[1762298996741,0.2357055,101310.0,101290.0,0.29878025]
[1762298996937,0.01503,101300.0,101290.0,0.29878025]
[1762298997641,0.21937436,101320.0,101310.0,0.19741387]
[1762298997642,0.20950439,101320.0,101310.0,0.19741387]
[1762298997959,0.23201439,101320.0,101300.0,0.19743336]
[1762298998161,0.23201439,101320.0,101310.0,0.19741387]
[1762298998559,0.29140439,101320.0,101310.0,0.19741387]
[1762298999161,0.24704439,101320.0,101310.0,0.19741387]
[1762298999373,0.19741387,101310.0,101300.0,0.19791475]
[1762298999561,0.21244387,101310.0,101300.0,0.19791475]
[1762298999763,0.23495387,101310.0,101300.0,0.00048139]
[1762298999975,0.23495387,101310.0,101300.0,0.19791475]
[1762299000390,0.05647,101320.0,101310.0,0.19741387]
[1762299000717,0.05647,101320.0,101310.0,0.20356387]
[1762299000920,0.07146,101320.0,101310.0,0.20356387]
[1762299001150,0.22453439,101320.0,101310.0,0.20356387]
[1762299001319,0.29136439,101320.0,101310.0,0.20356387]
[1762299001543,0.02714,101320.0,101310.0,0.21978387]
[1762299001672,0.01503,101320.0,101310.0,0.28892709]
[1762299002107,0.21242439,101320.0,101310.0,0.28892709]
[1762299002309,0.01503,101320.0,101310.0,0.28892709]
[1762299002509,0.23493439,101320.0,101300.0,0.20778641]
[1762299002831,0.02714,101310.0,101300.0,0.20778641]
[1762299003381,0.02251,101320.0,101310.0,0.19741387]
[1762299003613,0.03462,101320.0,101310.0,0.19741387]
[1762299003817,0.32277236,101320.0,101310.0,0.19741387]
[1762299004111,0.29136439,101320.0,101300.0,0.20778641]
[1762299004312,0.23495387,101310.0,101300.0,0.00348139]
[1762299004559,0.57495387,101310.0,101300.0,0.00348139]
[1762299004713,0.60636178,101310.0,101300.0,0.00348139]
[1762299005150,3.38760697,101310.0,101300.0,0.00348139]
[1762299005323,3.39681918,101310.0,101300.0,0.00348139]
[1762299005653,2.61557399,101310.0,101300.0,0.00048139]
[1762299006472,3.39681918,101310.0,101300.0,0.00248139]
[1762299006622,3.45142848,101310.0,101300.0,0.00248139]
[1762299006809,0.19750043,101270.0,101250.0,0.2913807]
[1762299007012,0.20828135,101260.0,101250.0,0.28945854]
[1762299007198,0.20828135,101260.0,101250.0,0.09199631]
[1762299009787,2.57369363,101260.0,101250.0,0.00048309]
[1762299009958,3.27351704,101260.0,101250.0,0.00048309]
[1762299010378,0.64943001,101260.0,101250.0,0.00048309]
[1762299010560,0.61123363,101260.0,101250.0,0.00048309]
[1762299010754,0.65555363,101260.0,101250.0,0.00048309]
[1762299012031,1.23632066,101260.0,101250.0,0.00048309]
[1762299012927,1.31155283,101260.0,101250.0,0.00048309]
[1762299013130,0.65655363,101260.0,101250.0,0.00048309]
[1762299013384,0.62037135,101260.0,101250.0,0.00048309]
[1762299013700,1.32168388,101260.0,101250.0,0.00048309]
[1762299013877,3.32168388,101260.0,101250.0,0.00048309]
[1762299014388,0.19758661,101230.0,101210.0,0.21356845]
[1762299014531,0.2261494,101220.0,101210.0,0.00663387]
[1762299014728,0.2496794,101220.0,101210.0,0.1980928]
[1762299014931,0.05209,101220.0,101210.0,0.1980928]
[1762299015173,0.01229,101220.0,101210.0,0.2042428]
[1762299015331,0.08014,101230.0,101220.0,0.1975894]
[1762299015538,0.05661,101230.0,101220.0,0.28295262]
[1762299015740,0.01229,101240.0,101230.0,0.19756989]
[1762299015948,0.01229,101240.0,101230.0,0.77733692]
[1762299016140,0.01229,101240.0,101230.0,0.19756989]
[1762299016456,0.01229,101250.0,101240.0,0.19755037]
[1762299016643,0.01229,101260.0,101250.0,0.19751157]
[1762299016842,0.01229,101260.0,101250.0,0.28902479]
[1762299017248,0.02856,101260.0,101250.0,0.28902479]
[1762299017489,0.01229,101260.0,101250.0,0.28902479]
[1762299017647,0.07996,101270.0,101260.0,0.19751135]
[1762299017851,0.07996,101270.0,101260.0,0.19799522]
[1762299018050,0.01211,101270.0,101260.0,0.19799522]
[1762299018258,0.07884552,101280.0,101270.0,0.19749185]
[1762299018480,0.09511552,101280.0,101270.0,0.28285507]
[1762299018677,0.05079552,101280.0,101270.0,0.28285507]
[1762299018942,0.02726552,101280.0,101270.0,0.29020507]
[1762299019318,0.00022552,101280.0,101270.0,0.30684507]
[1762299019567,0.00022552,101280.0,101270.0,0.8866121]
[1762299019568,0.00122552,101280.0,101270.0,0.8866121]
[1762299020126,0.00122552,101280.0,101270.0,0.9562521]
[1762299021179,0.00022552,101280.0,101270.0,0.9562521]
[1762299021515,0.00122552,101280.0,101270.0,0.9562521]
[1762299021937,0.00122552,101280.0,101270.0,1.2962521]
[1762299022845,0.00022552,101280.0,101270.0,1.2962521]
[1762299023056,0.00022552,101280.0,101270.0,1.2992521]
[1762299023976,0.00022552,101280.0,101270.0,0.64984507]
[1762299024870,0.00022552,101280.0,101270.0,1.2492521]
[1762299025557,0.00022552,101280.0,101270.0,1.2992521]
[1762299025969,0.00022552,101280.0,101270.0,1.33423083]
[1762299026480,0.00022552,101280.0,101270.0,1.2992521]
[1762299026686,0.00022552,101280.0,101270.0,1.2296121]
[1762299026864,0.00022552,101280.0,101270.0,0.64984507]
[1762299027629,0.23749787,101280.0,101270.0,0.003]
[1762299027881,0.23749787,101280.0,101270.0,0.08536322]
[1762299028247,0.26924694,101280.0,101270.0,0.08536322]
[1762299028587,0.19749185,101270.0,101260.0,0.19799522]
[1762299028787,0.20978185,101270.0,101260.0,0.19799522]
[1762299029595,0.01229,101270.0,101260.0,0.19799522]
[1762299029726,0.01351552,101280.0,101270.0,0.19749185]
[1762299029935,0.00122552,101280.0,101270.0,0.29949507]
[1762299030140,0.00122552,101280.0,101270.0,0.28285507]
[1762299030349,0.23749787,101280.0,101270.0,0.08536322]
[1762299030568,0.19749185,101270.0,101260.0,0.19799522]
[1762299030776,0.23729185,101270.0,101260.0,0.19899522]
[1762299030981,0.23729185,101270.0,101260.0,0.19799522]
[1762299031384,0.23729185,101270.0,101260.0,0.00048387]
[1762299032379,0.0398,101270.0,101260.0,0.19799522]
[1762299032589,0.23729185,101270.0,101260.0,0.00048387]
[1762299032950,0.23729185,101270.0,101260.0,0.19799522]
[1762299033580,0.23729185,101270.0,101260.0,0.00048387]
[1762299033783,0.23729185,101270.0,101260.0,0.00148387]
[1762299033961,0.23729185,101270.0,101260.0,0.00048387]
[1762299034378,0.23829185,101270.0,101260.0,0.00048387]
[1762299034577,0.81805888,101270.0,101260.0,0.00048387]
[1762299034763,1.0288272,101270.0,101260.0,0.00048387]
[1762299034967,1.33807813,101270.0,101260.0,0.00048387]
[1762299035171,3.3688272,101270.0,101260.0,0.00048387]
[1762299035721,3.3678272,101270.0,101260.0,0.00048387]
[1762299036045,3.37700333,101270.0,101260.0,0.00048387]
[1762299036987,3.38000333,101270.0,101260.0,0.00048387]